bitfinex/quotes_SOLUSD_20250622
["timestamp","ask_amount","ask_price","bid_price","bid_amount"]
[1750630143220,21.82552962,131.19,131.17,6.2098]
[1750630143421,18.64964886,131.28,131.16,21.82552962]
[1750630143605,18.64964886,131.27,131.18,21.82552962]
[1750630143806,18.64964886,131.27,131.14,0.72]
[1750630143807,21.82552962,131.24,131.14,0.72]
[1750630144121,0.68,131.28,131.14,0.72]
[1750630144122,21.82552962,131.2,131.15,7.62473239]
[1750630144433,0.68,131.22,131.12,6.2134]
[1750630144600,6.2514,131.3,131.18,23.33281287]
[1750630144601,0.68,131.26,131.18,23.33281287]
[1750630144901,0.68,131.26,131.12,13.8395787]
[1750630144902,23.33281287,131.26,131.21,23.33281287]
[1750630145098,23.33281287,131.27,131.23,23.33281287]
[1750630145320,23.33281287,131.31,131.26,23.33281287]
[1750630145541,0.68,131.34,131.28,49.33281287]
[1750630145823,23.33281287,131.3,131.28,26.0]
[1750630146125,23.33281287,131.29,131.26,26.0]
[1750630146304,23.33281287,131.27,131.26,26.0]
[1750630146512,23.33281287,131.27,131.25,26.0]
[1750630146709,23.33281287,131.26,131.25,26.0]
[1750630146907,24.01281287,131.32,131.25,26.0]
[1750630147222,23.33281287,131.26,131.2,18.38]
[1750630147426,23.33281287,131.23,131.2,18.38]
[1750630147627,23.33281287,131.23,131.22,26.0]
[1750630147832,0.68,131.29,131.22,26.0]
[1750630148129,23.33281287,131.23,131.22,26.0]
[1750630148425,23.33281287,131.23,131.2,18.38]
[1750630148605,23.33281287,131.22,131.2,18.38]
[1750630148812,0.68,131.29,131.2,18.38]
[1750630149124,23.33281287,131.24,131.2,18.38]
[1750630149429,0.68,131.29,131.2,18.38]
[1750630149430,23.33281287,131.26,131.23,26.0]
[1750630149935,23.33281287,131.25,131.2,18.38]
[1750630150227,23.33281287,131.23,131.22,26.0]
[1750630150734,23.33281287,131.23,131.2,18.38]
[1750630151028,23.44,131.31,131.11,23.633882]
[1750630151029,23.33281287,131.21,131.13,29.86221287]
[1750630151229,23.33281287,131.18,131.16,26.0]
[1750630151428,0.68,131.24,131.11,28.3269473]
[1750630151429,18.64964886,131.26,131.12,23.33281287]
[1750630151639,23.33281287,131.16,131.15,26.0]
[1750630151849,23.33281287,131.16,131.11,19.9799]
[1750630152006,41.98964886,131.22,131.11,41.71281287]
[1750630152007,23.33281287,131.15,131.11,41.71281287]
[1750630152315,0.68,131.19,131.14,26.0]
[1750630152519,23.33281287,131.15,131.14,26.0]
[1750630152746,23.33281287,131.18,131.15,26.0]
[1750630152910,23.33281287,131.18,131.11,18.38]
[1750630153111,0.68,131.21,131.13,49.33281287]
[1750630153330,23.33281287,131.18,131.13,49.33281287]
[1750630153519,23.33281287,131.17,131.13,49.33281287]
[1750630153739,23.33281287,131.17,131.13,26.0]
[1750630154034,0.68,131.21,131.13,26.0]
[1750630154209,29.99707891,131.39,131.11,18.38]
[1750630154210,0.72,131.27,131.15,0.68]
[1750630154412,0.72,131.27,131.17,26.0]
[1750630154832,23.58,131.31,131.17,26.0]
[1750630154833,23.33281287,131.26,131.24,26.0]
[1750630155024,23.33281287,131.26,131.21,23.33281287]
[1750630155025,23.33281287,131.28,131.23,23.33281287]
[1750630155348,23.33281287,131.31,131.23,26.0]
[1750630155507,0.72,131.37,131.26,23.33281287]
[1750630155707,23.33281287,131.31,131.27,49.33281287]
[1750630156527,23.33281287,131.31,131.27,26.0]
[1750630156729,23.33281287,131.3,131.29,26.0]
[1750630157117,23.33281287,131.31,131.29,26.0]
[1750630158416,19.36964886,131.37,131.27,23.33281287]
[1750630158618,23.33281287,131.34,131.32,26.0]
[1750630159518,23.33281287,131.33,131.29,26.0]
[1750630159718,23.33281287,131.3,131.29,26.0]
[1750630159920,0.72,131.37,131.29,26.0]
[1750630160118,23.33281287,131.3,131.29,26.0]
[1750630160313,0.72,131.42,131.29,49.33281287]
[1750630160521,23.33281287,131.4,131.35,23.33281287]
[1750630160733,0.72,131.48,131.36,49.33281287]
[1750630161031,23.33281287,131.38,131.36,26.0]
[1750630161220,23.33281287,131.37,131.31,29.76111287]
[1750630161532,23.33281287,131.35,131.34,26.0]
[1750630162137,23.33281287,131.35,131.28,1.5499]
[1750630162335,23.33281287,131.3,131.26,23.33281287]
[1750630162509,23.33281287,131.3,131.29,26.0]
[1750630162715,23.33281287,131.31,131.29,26.0]
[1750630162921,23.33281287,131.3,131.29,26.0]
[1750630163123,23.33281287,131.3,131.28,26.0]
[1750630163342,18.64964886,131.36,131.29,26.0]
[1750630163716,23.33281287,131.31,131.29,26.0]
[1750630163941,23.33281287,131.3,131.28,26.0]
[1750630164324,21.85976266,131.29,131.25,29.66]
[1750630164540,21.85976266,131.26,131.19,18.38]
[1750630164716,21.85976266,131.22,131.19,18.38]
[1750630164918,21.85976266,131.22,131.21,26.0]
[1750630165129,21.85976266,131.22,131.19,18.38]
[1750630165319,0.72,131.27,131.19,18.38]
[1750630165522,0.72,131.34,131.23,21.85976266]
[1750630165743,21.85976266,131.26,131.22,26.0]
[1750630165921,21.85976266,131.23,131.19,18.38]
[1750630166125,21.85976266,131.21,131.19,18.38]
[1750630166618,21.85976266,131.21,131.19,44.38]
[1750630166849,21.85976266,131.22,131.21,26.0]
[1750630167021,0.72,131.28,131.2,21.85976266]
[1750630167221,21.85976266,131.25,131.2,21.85976266]
[1750630167526,21.85976266,131.26,131.23,26.0]
[1750630167922,21.85976266,131.24,131.22,26.0]
[1750630168223,23.31235858,131.25,131.23,26.0]
[1750630168743,18.64964886,131.31,131.22,26.0]
[1750630168948,23.31235858,131.26,131.22,26.0]
[1750630169253,23.31235858,131.23,131.19,18.38]
[1750630169543,0.72,131.29,131.19,44.38]
[1750630169725,23.31235858,131.21,131.19,44.38]
[1750630170039,23.31235858,131.2,131.19,44.38]
[1750630170249,23.31235858,131.21,131.19,44.38]
[1750630170617,23.31235858,131.26,131.23,26.0]
[1750630170850,18.64964886,131.31,131.23,26.0]
[1750630170851,23.31235858,131.25,131.23,26.0]
[1750630171059,18.64964886,131.31,131.24,26.0]
[1750630171232,23.31235858,131.26,131.22,49.31235858]
[1750630172446,23.31235858,131.23,131.19,18.38]
[1750630172646,23.31235858,131.22,131.19,18.38]
[1750630172842,23.31235858,131.22,131.21,26.0]
[1750630173234,23.31235858,131.22,131.2,26.0]
[1750630173437,23.31235858,131.22,131.21,26.0]
[1750630173967,0.72,131.24,131.16,1.5914]
[1750630174273,23.31235858,131.2,131.16,27.5914]
[1750630174455,23.31235858,131.23,131.18,26.0]
[1750630174634,18.64964886,131.28,131.18,26.0]
[1750630174838,23.31235858,131.21,131.2,26.0]
[1750630175060,23.31235858,131.21,131.16,1.5914]
[1750630175360,23.31235858,131.17,131.13,29.64]
[1750630175539,0.72,131.24,131.17,26.0]
[1750630175850,23.31235858,131.22,131.18,23.31235858]
[1750630176057,23.31235858,131.22,131.17,23.31235858]
[1750630176260,23.16,131.26,131.17,23.31235858]
[1750630176432,23.31235858,131.22,131.18,49.31235858]
[1750630176837,23.31235858,131.22,131.18,26.0]
[1750630177249,0.72,131.28,131.2,23.31235858]
[1750630177460,23.31235858,131.24,131.2,23.31235858]
[1750630177747,23.31235858,131.25,131.21,49.31235858]
[1750630177935,0.72,131.32,131.22,23.31235858]
[1750630178138,23.31235858,131.27,131.23,23.31235858]
[1750630178336,23.31235858,131.27,131.22,26.0]
[1750630178559,23.31235858,131.26,131.22,49.31235858]
[1750630178776,23.31235858,131.28,131.23,23.31235858]
[1750630179062,23.31235858,131.26,131.23,26.0]
[1750630179264,23.31235858,131.26,131.24,26.0]
[1750630179655,23.31235858,131.27,131.24,26.0]
[1750630180178,0.72,131.32,131.24,26.0]
[1750630180352,23.31235858,131.28,131.24,26.0]
[1750630180673,23.31235858,131.28,131.23,23.31235858]
[1750630180674,23.31235858,131.27,131.25,26.0]
[1750630182280,26.0,131.37,131.25,26.0]
[1750630182281,1.1636,131.38,131.25,49.31235858]
[1750630182566,1.1636,131.38,131.22,26.67270937]
[1750630182567,23.31235858,131.35,131.3,26.0]
[1750630182744,23.31235858,131.34,131.3,26.0]
[1750630182946,23.31235858,131.31,131.26,23.31235858]
[1750630183198,23.31235858,131.31,131.3,26.0]
[1750630183346,0.72,131.38,131.3,26.0]
[1750630183551,23.31235858,131.34,131.29,23.31235858]
[1750630184067,23.31235858,131.34,131.27,26.0]
[1750630184068,23.31235858,131.34,131.3,49.31235858]
[1750630184257,23.31235858,131.35,131.3,49.31235858]
[1750630184446,23.31235858,131.35,131.33,26.0]
[1750630184656,23.31235858,131.36,131.33,26.0]
[1750630184977,23.31235858,131.38,131.34,23.31235858]
[1750630185180,6.1826,131.44,131.37,26.0]
[1750630185350,23.31235858,131.41,131.37,23.31235858]
[1750630185544,23.31235858,131.38,131.36,26.0]
[1750630185745,23.31235858,131.37,131.36,26.0]
[1750630186668,23.31235858,131.37,131.31,32.48484273]
[1750630186669,23.31235858,131.37,131.31,1.5573]
[1750630186856,0.73,131.4,131.33,26.0]
[1750630187060,23.31235858,131.34,131.33,26.0]
[1750630187602,23.31235858,131.34,131.32,26.0]
[1750630187884,23.31235858,131.34,131.31,1.5573]
[1750630187885,0.73,131.38,131.29,47.0]
[1750630188052,23.31235858,131.32,131.31,26.0]
[1750630188256,21.83445069,131.35,131.33,26.0]
[1750630188551,21.83445069,131.36,131.33,26.0]
[1750630188763,21.83445069,131.37,131.33,26.0]
[1750630188974,21.83445069,131.38,131.35,26.0]
[1750630189166,21.83445069,131.38,131.37,26.0]
[1750630189375,0.73,131.47,131.37,47.83445069]
[1750630189561,21.83445069,131.45,131.43,26.0]
[1750630189877,21.83445069,131.46,131.43,26.0]
[1750630190064,21.83445069,131.46,131.42,21.83445069]
[1750630190267,21.83445069,131.47,131.45,26.0]
[1750630190470,0.73,131.51,131.45,26.0]
[1750630190647,21.83445069,131.47,131.45,26.0]
[1750630190846,21.83445069,131.46,131.42,21.83445069]
[1750630191080,21.83445069,131.43,131.41,26.0]
[1750630191251,21.83445069,131.42,131.38,44.8882]
[1750630191451,0.73,131.48,131.38,44.8882]
[1750630191452,21.83445069,131.44,131.39,21.83445069]
[1750630191656,21.83445069,131.43,131.42,26.0]
[1750630192273,21.83445069,131.44,131.42,26.0]
[1750630192477,21.83445069,131.43,131.38,18.8882]
[1750630192671,21.83445069,131.41,131.39,26.0]
[1750630193250,18.64964886,131.47,131.38,40.72265069]
[1750630193566,21.83445069,131.42,131.38,66.72265069]
[1750630193752,0.73,131.48,131.39,21.83445069]
[1750630193953,21.83445069,131.43,131.39,26.0]
[1750630194170,21.83445069,131.43,131.39,47.83445069]
[1750630194762,21.83445069,131.44,131.39,47.83445069]
[1750630195579,21.83445069,131.43,131.39,47.83445069]
[1750630196077,21.83445069,131.4,131.38,17.32]
[1750630196259,21.83445069,131.39,131.38,17.32]
[1750630196868,0.73,131.43,131.38,17.32]
[1750630197072,4.57689433,131.46,131.38,17.32]
[1750630197267,21.83445069,131.42,131.38,43.32]
[1750630197475,0.73,131.47,131.38,43.32]
[1750630197788,21.83445069,131.42,131.38,65.15445069]
[1750630197963,0.73,131.47,131.39,21.83445069]
[1750630198172,0.73,131.47,131.38,17.32]
[1750630198173,21.83445069,131.43,131.38,17.32]
[1750630198359,21.83445069,131.43,131.38,39.15445069]
[1750630198561,21.83445069,131.42,131.38,17.32]
[1750630198759,21.83445069,131.4,131.38,17.32]
[1750630199077,21.83445069,131.39,131.38,17.32]
[1750630199387,0.73,131.42,131.33,1.6558]
[1750630199600,21.83445069,131.4,131.33,1.6558]
[1750630199774,21.83445069,131.36,131.33,1.6558]
[1750630200097,21.83445069,131.35,131.33,1.6558]
[1750630200300,21.83445069,131.34,131.3,38.63445069]
[1750630200484,21.83445069,131.31,131.3,16.8]
[1750630200785,0.73,131.43,131.3,38.63445069]
[1750630200995,22.56445069,131.4,131.3,16.8]
[1750630201205,21.83445069,131.31,131.3,16.8]
[1750630201504,21.83445069,131.31,131.23,23.35225069]
[1750630201670,26.73,131.35,131.25,21.83445069]
[1750630201866,21.83445069,131.3,131.25,21.83445069]
[1750630202077,21.83445069,131.3,131.23,27.5178]
[1750630202269,21.83445069,131.3,131.25,21.83445069]
[1750630202477,21.83445069,131.3,131.26,21.83445069]
[1750630202790,21.83445069,131.29,131.24,21.83445069]
[1750630202968,26.73,131.35,131.24,21.83445069]
[1750630203175,26.73,131.35,131.26,21.83445069]
[1750630203479,21.83445069,131.31,131.26,21.83445069]
[1750630204675,21.83445069,131.31,131.23,35.13792531]
[1750630204889,21.83445069,131.31,131.26,21.83445069]
[1750630205087,21.83445069,131.31,131.24,0.5]
[1750630205284,21.83445069,131.29,131.25,21.83445069]
[1750630205719,21.83445069,131.3,131.25,21.83445069]
[1750630205876,0.73,131.35,131.26,21.83445069]
[1750630206082,21.83445069,131.3,131.26,21.83445069]
[1750630206471,21.83445069,131.29,131.23,27.5178]
[1750630206805,21.83445069,131.28,131.23,49.35225069]
[1750630206966,21.83445069,131.25,131.22,16.32]
[1750630208570,0.73,131.29,131.22,38.15445069]
[1750630208775,21.83445069,131.26,131.22,16.32]
[1750630208991,21.83445069,131.25,131.22,16.32]
[1750630209300,21.83445069,131.23,131.22,16.32]
[1750630209595,22.56445069,131.23,131.17,29.62]
[1750630209804,21.83445069,131.18,131.14,16.32]
[1750630209973,21.83445069,131.15,131.14,16.32]
[1750630210297,0.73,131.22,131.14,16.32]
[1750630210474,21.83445069,131.19,131.14,38.15445069]
[1750630210897,21.83445069,131.18,131.14,38.15445069]
[1750630211488,21.83445069,131.17,131.14,16.32]
[1750630211715,21.83445069,131.15,131.14,16.32]
[1750630211873,21.83445069,131.16,131.14,16.32]
[1750630212080,21.83445069,131.15,131.14,16.32]
[1750630212700,21.83445069,131.15,131.09,21.83445069]
[1750630212891,0.73,131.18,131.1,21.83445069]
[1750630213100,0.73,131.18,131.09,21.83445069]
[1750630213101,21.83445069,131.14,131.09,21.83445069]
[1750630213277,21.83445069,131.13,131.09,21.83445069]
[1750630214175,0.73,131.18,131.11,21.83445069]
[1750630214375,0.73,131.18,131.09,26.0]
[1750630214376,21.83445069,131.17,131.12,26.0]
[1750630214596,21.83445069,131.23,131.16,21.83445069]
[1750630214798,0.71,131.27,131.2,21.83445069]
[1750630214993,21.83445069,131.23,131.19,21.83445069]
[1750630215197,21.83445069,131.22,131.17,21.83445069]
[1750630215400,21.83445069,131.23,131.19,21.83445069]
[1750630215585,21.83445069,131.23,131.18,21.83445069]
[1750630216598,21.83445069,131.2,131.16,37.67445069]
[1750630216980,21.83445069,131.19,131.16,15.84]
[1750630217192,21.83445069,131.17,131.11,21.83445069]
[1750630217503,21.83445069,131.15,131.11,21.83445069]
[1750630217707,18.64964886,131.2,131.1,21.83445069]
[1750630218004,21.83445069,131.12,131.09,15.86]
[1750630219103,21.83445069,131.1,131.09,15.86]
[1750630220313,7.04537176,131.2,131.09,15.86]
[1750630220487,21.83445069,131.15,131.1,21.83445069]
[1750630221684,21.83445069,131.15,131.09,15.86]
[1750630221985,21.83445069,131.16,131.11,21.83445069]
[1750630222181,21.83445069,131.14,131.1,21.83445069]
[1750630222385,21.83445069,131.14,131.09,15.86]
[1750630222386,21.83445069,131.14,131.09,37.69445069]
[1750630222586,21.83445069,131.14,131.1,21.83445069]
[1750630222983,21.83445069,131.15,131.1,21.83445069]
[1750630223383,44.64964886,131.21,131.1,21.83445069]
[1750630223384,6.0364,131.22,131.13,21.83445069]
[1750630223612,21.83445069,131.2,131.16,21.83445069]
[1750630223797,21.83445069,131.2,131.15,21.83445069]
[1750630223998,21.83445069,131.19,131.15,21.83445069]
[1750630224408,21.83445069,131.2,131.15,21.83445069]
[1750630224608,0.71,131.24,131.16,21.83445069]
[1750630224815,21.83445069,131.2,131.16,21.83445069]
[1750630225011,21.83445069,131.2,131.14,26.0]
[1750630225213,21.83445069,131.19,131.15,21.83445069]
[1750630225390,21.83445069,131.2,131.15,21.83445069]
[1750630225596,21.83445069,131.2,131.16,21.83445069]
[1750630225911,21.83445069,131.2,131.15,21.83445069]
[1750630226591,21.83445069,131.19,131.14,26.0]
[1750630226897,21.83445069,131.19,131.12,1.5334]
[1750630226898,21.83445069,131.17,131.12,23.36785069]
[1750630227102,0.71,131.19,131.1,21.83445069]
[1750630227103,21.83445069,131.15,131.1,21.83445069]
[1750630227306,21.83445069,131.16,131.11,21.83445069]
[1750630227510,21.83445069,131.16,131.12,21.83445069]
[1750630227706,21.83445069,131.16,131.11,21.83445069]
[1750630228613,21.83445069,131.15,131.11,21.83445069]
[1750630229123,0.71,131.19,131.11,21.83445069]
[1750630229293,18.64964886,131.24,131.15,21.83445069]
[1750630229496,21.83445069,131.18,131.13,47.83445069]
[1750630229917,0.71,131.23,131.14,21.83445069]
[1750630230106,0.71,131.23,131.13,26.0]
[1750630230107,21.83445069,131.21,131.17,21.83445069]
[1750630230313,21.83445069,131.23,131.18,21.83445069]
[1750630230705,6.1828,131.26,131.17,21.83445069]
[1750630231022,21.83445069,131.2,131.13,26.72]
[1750630231220,21.83445069,131.2,131.15,21.83445069]
[1750630231615,21.83445069,131.2,131.16,21.83445069]
[1750630231811,21.83445069,131.19,131.15,21.83445069]
[1750630231995,21.83445069,131.17,131.13,47.83445069]
[1750630232201,0.71,131.21,131.12,21.83445069]
[1750630232403,0.71,131.24,131.15,21.83445069]
[1750630232699,21.83445069,131.19,131.15,21.83445069]
[1750630233207,21.83445069,131.21,131.17,21.83445069]
[1750630233404,0.71,131.24,131.17,21.83445069]
[1750630233405,21.83445069,131.22,131.17,21.83445069]
[1750630233605,21.83445069,131.19,131.15,26.0]
[1750630233902,21.83445069,131.16,131.08,0.72]
[1750630234097,21.83445069,131.14,131.09,21.83445069]
[1750630234402,21.83445069,131.13,131.09,26.0]
[1750630234637,21.83445069,131.12,131.07,23.36785069]
[1750630234803,21.83445069,131.11,131.07,1.5334]
[1750630235002,21.83445069,131.09,131.06,14.88]
[1750630235409,0.71,131.14,131.06,14.88]
[1750630235749,25.26364886,131.18,131.06,14.88]
[1750630235750,21.83445069,131.07,131.06,14.88]
[1750630236701,22.54445069,131.07,131.06,14.88]
[1750630236931,22.54445069,131.07,130.99,21.83445069]
[1750630237106,21.83445069,131.01,130.97,1.5762]
[1750630237303,21.83445069,131.02,130.97,23.41065069]
[1750630237909,7.75537176,131.11,131.01,21.83445069]
[1750630238227,21.83445069,131.11,131.04,26.0]
[1750630238436,21.83445069,131.12,131.07,21.83445069]
[1750630238610,21.94,131.14,131.08,21.83445069]
[1750630238804,21.83445069,131.12,131.07,21.83445069]
[1750630239302,21.83445069,131.11,131.04,26.0]
[1750630239513,0.71,131.15,131.03,36.25445069]
[1750630239514,21.83445069,131.07,131.03,36.25445069]
[1750630240106,0.71,131.11,131.03,14.42]
[1750630240308,21.83445069,131.07,131.03,14.42]
[1750630240510,21.83445069,131.06,131.03,14.42]
[1750630240751,21.83445069,131.05,131.03,14.42]
[1750630240937,0.71,131.11,131.03,14.42]
[1750630241147,21.83445069,131.07,131.03,14.42]
[1750630241445,21.83445069,131.09,131.04,21.83445069]
[1750630241614,21.83445069,131.09,131.05,21.83445069]
[1750630241813,0.71,131.16,131.08,21.83445069]
[1750630242015,21.83445069,131.12,131.08,21.83445069]
[1750630242212,21.83445069,131.12,131.03,22.05172163]
[1750630242419,21.83445069,131.12,131.07,21.83445069]
[1750630242618,21.83445069,131.11,131.07,21.83445069]
[1750630242821,0.71,131.16,131.08,21.83445069]
[1750630243138,21.83445069,131.13,131.08,21.83445069]
[1750630243515,21.83445069,131.12,131.07,21.83445069]
[1750630243715,0.71,131.16,131.07,21.83445069]
[1750630244032,21.83445069,131.12,131.07,21.83445069]
[1750630244231,21.83445069,131.12,131.03,14.42]
[1750630244232,22.51445069,131.13,131.03,36.25445069]
[1750630244419,21.83445069,131.08,131.03,36.25445069]
[1750630244921,22.51445069,131.13,131.03,36.25445069]
[1750630244922,0.68,131.13,131.07,21.83445069]
[1750630245224,21.83445069,131.12,131.07,21.83445069]
[1750630245424,21.83445069,131.11,131.07,21.83445069]
[1750630245647,22.51445069,131.13,131.06,26.0]
[1750630245815,44.64964886,131.17,131.09,21.83445069]
[1750630245816,0.68,131.17,131.09,21.83445069]
[1750630246014,1.1636,131.24,131.16,21.83445069]
[1750630246015,21.83445069,131.24,131.16,21.83445069]
[1750630246345,21.83445069,131.26,131.16,41.9535]
[1750630246526,21.83445069,131.25,131.2,21.83445069]
[1750630246722,21.83445069,131.23,131.16,15.9535]
[1750630246936,21.83445069,131.23,131.18,21.83445069]
[1750630247155,21.83445069,131.23,131.16,15.9535]
[1750630247156,21.83445069,131.26,131.21,21.83445069]
[1750630247319,21.83445069,131.24,131.19,21.83445069]
[1750630247526,0.68,131.24,131.16,23.36795069]
[1750630247739,21.83445069,131.2,131.16,23.36795069]
[1750630247965,21.83445069,131.2,131.16,1.5335]
[1750630248125,21.83445069,131.21,131.16,23.36795069]
[1750630248330,0.68,131.24,131.16,9.15771899]
[1750630248549,21.83445069,131.26,131.21,21.83445069]
[1750630248734,0.68,131.28,131.16,35.15771899]
[1750630248735,21.83445069,131.27,131.19,26.0]
[1750630249050,21.83445069,131.27,131.22,21.83445069]
[1750630249233,21.83445069,131.27,131.23,21.83445069]
[1750630249542,0.68,131.28,131.23,21.83445069]
[1750630249742,22.51445069,131.28,131.24,21.83445069]
[1750630249925,22.51445069,131.28,131.2,26.0]
[1750630249926,22.51445069,131.28,131.23,21.83445069]
[1750630250129,0.68,131.28,131.23,21.83445069]
[1750630250335,21.83445069,131.3,131.22,26.0]
[1750630250641,21.83445069,131.26,131.22,21.83445069]
[1750630251022,22.51445069,131.28,131.24,21.83445069]
[1750630251223,21.83445069,131.3,131.2,6.3605]
[1750630251523,22.51445069,131.21,131.14,21.83445069]
[1750630251854,21.83445069,131.22,131.17,21.83445069]
[1750630252018,21.83445069,131.22,131.14,26.0]
[1750630252223,21.83445069,131.21,131.17,21.83445069]
[1750630252650,0.68,131.25,131.17,21.83445069]
[1750630252849,21.83445069,131.21,131.17,21.83445069]
[1750630253227,21.83445069,131.21,131.16,21.83445069]
[1750630253552,21.83445069,131.19,131.15,21.83445069]
[1750630253762,21.83445069,131.17,131.13,21.83445069]
[1750630254130,21.83445069,131.16,131.11,37.87175069]
[1750630254331,0.68,131.21,131.11,1.6173]
[1750630254332,21.83445069,131.15,131.11,1.6173]
[1750630254556,21.83445069,131.15,131.11,23.45175069]
[1750630254762,21.83445069,131.15,131.11,1.6173]
[1750630255142,21.83445069,131.14,131.11,1.6173]
[1750630255538,21.83445069,131.13,131.1,14.42]
[1750630255744,21.83445069,131.14,131.1,14.42]
[1750630255954,0.68,131.19,131.1,36.25445069]
[1750630256177,21.83445069,131.14,131.1,36.25445069]
[1750630256349,21.83445069,131.14,131.1,14.42]
[1750630256540,21.83445069,131.14,131.04,51.36557832]
[1750630256541,22.51445069,131.11,131.0,8.1218]
[1750630256740,0.68,131.11,131.01,21.83445069]
[1750630257042,6.642,131.15,131.06,21.83445069]
[1750630257043,21.83445069,131.1,131.06,21.83445069]
[1750630257362,21.83445069,131.09,131.04,21.83445069]
[1750630257540,21.83445069,131.06,131.01,21.83445069]
[1750630257743,21.83445069,131.08,131.03,21.83445069]
[1750630257956,21.83445069,131.07,131.02,21.83445069]
[1750630258288,21.83445069,131.04,131.0,1.6596]
[1750630258458,0.68,131.09,131.0,23.49405069]
[1750630258651,66.48409955,131.13,131.04,21.83445069]
[1750630258652,45.32964886,131.13,131.04,21.83445069]
[1750630258849,21.83445069,131.11,131.06,21.83445069]
[1750630259559,21.83445069,131.11,131.07,21.83445069]
[1750630259757,6.642,131.15,131.08,21.83445069]
[1750630260071,21.83445069,131.15,131.11,21.83445069]
[1750630260246,43.73445069,131.19,131.14,21.83445069]
[1750630260574,21.9,131.19,131.15,21.83445069]
[1750630261053,21.83445069,131.2,131.16,21.83445069]
[1750630261364,21.83445069,131.2,131.15,21.83445069]
[1750630261576,21.83445069,131.19,131.14,21.83445069]
[1750630261874,6.2948,131.26,131.16,21.83445069]
[1750630262044,21.83445069,131.26,131.21,21.83445069]
[1750630262250,23.31877597,131.24,131.19,23.31877597]
[1750630262447,0.68,131.26,131.2,23.31877597]
[1750630262744,0.68,131.3,131.22,23.31877597]
[1750630262949,23.31877597,131.27,131.23,23.31877597]
[1750630263172,18.64964886,131.29,131.2,23.31877597]
[1750630263351,18.64964886,131.29,131.18,23.31877597]
[1750630263352,23.31877597,131.23,131.18,23.31877597]
[1750630263857,23.31877597,131.25,131.2,23.31877597]
[1750630264058,23.31877597,131.24,131.2,23.31877597]
[1750630264261,23.31877597,131.23,131.18,23.31877597]
[1750630264569,23.31877597,131.28,131.22,23.31877597]
[1750630264774,23.31877597,131.27,131.23,23.31877597]
[1750630265069,23.31877597,131.25,131.17,14.42]
[1750630265370,23.31877597,131.24,131.19,23.31877597]
[1750630265554,23.31877597,131.22,131.18,23.31877597]
[1750630265746,23.31877597,131.23,131.19,23.31877597]
[1750630265951,23.31877597,131.24,131.19,23.31877597]
[1750630266154,23.31877597,131.24,131.2,23.31877597]
[1750630266353,0.68,131.28,131.21,23.31877597]
[1750630266653,23.31877597,131.23,131.17,14.42]
[1750630266853,23.31877597,131.22,131.18,23.31877597]
[1750630267247,0.68,131.28,131.21,23.31877597]
[1750630267454,23.31877597,131.27,131.23,23.31877597]
[1750630267758,23.31877597,131.26,131.21,23.31877597]
[1750630267961,23.31877597,131.25,131.17,14.42]
[1750630268162,0.68,131.28,131.22,23.31877597]
[1750630268350,0.68,131.38,131.27,26.0]
[1750630268549,23.31877597,131.32,131.27,14.28]
[1750630268859,23.31877597,131.29,131.24,23.31877597]
[1750630269165,0.68,131.32,131.22,15.9433]
[1750630269474,0.68,131.36,131.24,26.0]
[1750630269661,23.31877597,131.31,131.23,18.64964886]
[1750630269857,0.68,131.36,131.25,26.0]
[1750630270064,23.31877597,131.32,131.27,23.31877597]
[1750630270275,23.31877597,131.32,131.25,26.0]
[1750630270276,23.31877597,131.33,131.28,23.31877597]
[1750630270486,23.31877597,131.29,131.22,1.6633]
[1750630270657,23.31877597,131.29,131.21,7.6212176]
[1750630270658,23.31877597,131.23,131.21,14.26]
[1750630270968,23.31877597,131.32,131.16,15.37870872]
[1750630270969,23.31877597,131.22,131.16,15.37870872]
[1750630271147,22.56,131.29,131.17,23.31877597]
[1750630271473,23.31877597,131.2,131.17,26.0]
[1750630271655,18.64964886,131.28,131.16,7.7546]
[1750630271854,23.31877597,131.19,131.16,33.7546]
[1750630272060,18.64964886,131.28,131.16,7.7546]